bitfinex/quotes_BTCUSD_20260104
["timestamp","ask_amount","ask_price","bid_price","bid_amount"]
[1767503568474,0.0109475,91345.0,91341.0,0.04546655]
[1767503568676,0.0109475,91345.0,91341.0,0.05641453]
[1767503568941,0.0099485,91345.0,91341.0,0.04546655]
[1767503569444,0.0099485,91345.0,91341.0,0.05641453]
[1767503569647,0.0099485,91345.0,91341.0,0.04546655]
[1767503570387,0.0099485,91345.0,91341.0,0.05637044]
[1767503572063,0.06568449,91346.0,91341.0,0.05637044]
[1767503574158,0.06559749,91346.0,91341.0,0.05637044]
[1767503574358,0.01086038,91346.0,91341.0,0.05637044]
[1767503574708,0.01086038,91346.0,91342.0,0.04555473]
[1767503576376,0.0109475,91345.0,91342.0,0.04555473]
[1767503577367,0.01086038,91346.0,91342.0,0.04551064]
[1767503582587,0.0109475,91345.0,91342.0,0.04451164]
[1767503584295,0.0109475,91345.0,91342.0,0.04446755]
[1767503584952,0.01086038,91346.0,91342.0,0.04446755]
[1767503587621,0.0109475,91345.0,91342.0,0.04446755]
[1767503590269,0.01086038,91346.0,91342.0,0.04446755]
[1767503590551,0.0109475,91345.0,91342.0,0.04446755]
[1767503590706,0.01086038,91346.0,91342.0,0.04446755]
[1767503592368,0.01086038,91346.0,91342.0,0.05541541]
[1767503593512,0.01086038,91346.0,91342.0,0.04446755]
[1767503593839,0.0109475,91345.0,91342.0,0.04446755]
[1767503594253,0.01086038,91346.0,91342.0,0.04446755]
[1767503594790,0.0109475,91345.0,91342.0,0.04446755]
[1767503595286,0.01086038,91346.0,91342.0,0.04446755]
[1767503595596,0.01094726,91347.0,91346.0,0.000999]
[1767503595841,0.01094726,91347.0,91342.0,0.05541541]
[1767503596764,0.01094726,91347.0,91343.0,0.01094774]
[1767503596966,0.01094726,91347.0,91344.0,0.04904981]
[1767503597186,0.01094714,91348.0,91344.0,0.04904981]
[1767503597595,0.01094726,91347.0,91344.0,0.04900573]
[1767503602285,0.06568394,91347.0,91344.0,0.04900573]
[1767503603164,0.05473729,91346.0,91344.0,0.04900573]
[1767503605304,0.01094762,91344.0,91341.0,0.04904981]
[1767503609441,0.01094762,91344.0,91341.0,0.04900573]
[1767503609662,0.01094762,91344.0,91341.0,0.04896165]
[1767503613540,0.01094762,91344.0,91339.0,0.03282822]
[1767503614188,0.00994862,91344.0,91340.0,0.06086107]
[1767503614702,0.06568727,91342.0,91339.0,0.02188]
[1767503614937,0.01094846,91337.0,91334.0,0.02188]
[1767503615138,0.01085822,91337.0,91334.0,0.02188]
[1767503615450,0.01085822,91337.0,91334.0,0.07179297]
[1767503615658,0.01094834,91338.0,91334.0,0.07179297]
[1767503616286,0.01094834,91338.0,91335.0,0.04991297]
[1767503616920,0.06568975,91339.0,91338.0,0.04991297]
[1767503617126,0.01568975,91339.0,91334.0,0.02188]
[1767503617326,0.01568975,91339.0,91335.0,0.04991297]
[1767503617874,0.05474095,91340.0,91335.0,0.04991297]
[1767503618068,0.01094822,91339.0,91335.0,0.04991297]
[1767503618266,0.01094822,91339.0,91333.0,0.01094894]
[1767503618492,0.01094822,91339.0,91275.0,0.06028711]
[1767503618493,0.0109493,91330.0,91321.0,0.04991297]
[1767503618693,0.000999,91333.0,91321.0,0.02188]
[1767503618694,0.01095002,91324.0,91321.0,0.02188]
[1767503618918,0.01094966,91327.0,91324.0,0.000999]
[1767503619091,0.06569759,91328.0,91323.0,0.01095014]
[1767503619400,0.01094942,91329.0,91324.0,0.01095002]
[1767503619615,0.0109493,91330.0,91325.0,0.0109499]
[1767503620798,0.01085906,91330.0,91325.0,0.0109499]
[1767503622381,0.01085906,91330.0,91326.0,0.01094978]
[1767503623290,0.06569547,91331.0,91326.0,0.01094978]
[1767503623497,0.03282882,91334.0,91331.0,0.000999]
[1767503623637,0.01094858,91336.0,91331.0,0.06186115]
[1767503623817,0.01094846,91337.0,91333.0,0.04991297]
[1767503624221,0.01094834,91338.0,91333.0,0.06086191]
[1767503624425,0.00994934,91338.0,91335.0,0.04991297]
[1767503626152,0.01094822,91339.0,91335.0,0.06086167]
[1767503626394,0.0109481,91340.0,91335.0,0.06086167]
[1767503628232,0.0109481,91340.0,91336.0,0.01094858]
[1767503628570,0.0656882,91341.0,91336.0,0.06086155]
[1767503628874,0.0109481,91340.0,91336.0,0.01094858]
[1767503630318,0.01094822,91339.0,91335.0,0.0109487]
[1767503630834,0.0109481,91340.0,91335.0,0.0109487]
[1767503631410,0.01094822,91339.0,91335.0,0.0109487]
[1767503632038,0.01094822,91339.0,91334.0,0.01094882]
[1767503633152,0.01094834,91338.0,91334.0,0.01094882]
[1767503633797,0.01094822,91339.0,91334.0,0.01094882]
[1767503634013,0.01094834,91338.0,91333.0,0.01094894]
[1767503634163,0.01094822,91339.0,91334.0,0.01094882]
[1767503634578,0.01087923,91340.0,91335.0,0.0109487]
[1767503635927,0.01094822,91339.0,91334.0,0.01094882]
[1767503636131,0.01094834,91338.0,91334.0,0.01094882]
[1767503638766,0.01094846,91337.0,91333.0,0.06086191]
[1767503638925,0.01094846,91337.0,91333.0,0.04991297]
[1767503639128,0.01094858,91336.0,91332.0,0.01094906]
[1767503639348,0.01099573,91336.0,91332.0,0.01094906]
[1767503639554,0.01099573,91336.0,91331.0,0.01094918]
[1767503639851,0.01099573,91336.0,91332.0,0.01094906]
[1767503640252,0.0109487,91335.0,91330.0,0.0109493]
[1767503640453,0.0109487,91335.0,91331.0,0.01094918]
[1767503641202,0.01094882,91334.0,91330.0,0.0109493]
[1767503642507,0.0109487,91335.0,91330.0,0.0109493]
[1767503643895,0.01099573,91336.0,91331.0,0.01094918]
[1767503644482,0.01099573,91336.0,91331.0,0.05738586]
[1767503645388,0.01099573,91336.0,91332.0,0.01094906]
[1767503645597,4.715e-05,91336.0,91333.0,0.01094894]
[1767503646277,0.01099573,91336.0,91332.0,0.01094906]
[1767503647084,0.01099573,91336.0,91331.0,0.01094918]
[1767503647883,0.0109487,91335.0,91330.0,0.06569534]
[1767503648649,0.0109487,91335.0,91330.0,0.0109493]
[1767503648946,0.01087983,91335.0,91330.0,0.0109493]
[1767503649152,0.01094882,91334.0,91329.0,0.0573861]
[1767503649361,0.01094882,91334.0,91330.0,0.0109493]
[1767503649984,0.01087983,91335.0,91330.0,0.0109493]
[1767503650394,0.01079165,91335.0,91330.0,0.0109493]
[1767503650611,0.01079165,91335.0,91331.0,0.01094918]
[1767503652014,0.01099573,91336.0,91331.0,0.01094918]
[1767503654326,0.0109487,91335.0,91331.0,0.01094918]
[1767503655502,0.01099573,91336.0,91331.0,0.01094918]
[1767503655757,0.01099573,91336.0,91332.0,0.01094906]
[1767503656139,0.01099573,91336.0,91331.0,0.01094918]
[1767503657297,0.01094846,91337.0,91332.0,0.01094906]
[1767503657519,0.01086027,91337.0,91332.0,0.01094906]
[1767503657934,0.01094858,91336.0,91331.0,0.01094918]
[1767503658643,0.0109487,91335.0,91331.0,0.01094918]
[1767503660568,0.0109487,91335.0,91330.0,0.0109493]
[1767503660789,0.01087983,91335.0,91330.0,0.0109493]
[1767503663227,0.01094882,91334.0,91328.0,0.02188]
[1767503663475,0.01094882,91334.0,91325.0,0.05474934]
[1767503663476,0.000999,91330.0,91325.0,0.0109499]
[1767503663746,0.00082057,91330.0,91325.0,0.0109499]
[1767503663950,0.00082057,91330.0,91327.0,0.01094966]
[1767503664893,0.0499092,91329.0,91324.0,0.04753235]
[1767503665618,0.01094918,91331.0,91326.0,0.01094978]
[1767503666237,0.000999,91326.0,91324.0,0.03283002]
[1767503666594,0.0109493,91330.0,91325.0,0.0109499]
[1767503667854,0.0109493,91330.0,91326.0,0.01094978]
[1767503668023,0.0109493,91330.0,91326.0,0.00995078]
[1767503668265,0.0109493,91330.0,91325.0,0.0109499]
[1767503668863,0.0109493,91330.0,91326.0,0.01094978]
[1767503669071,0.01094942,91329.0,91325.0,0.0109499]
[1767503669226,0.0109493,91330.0,91325.0,0.0109499]
[1767503670716,0.0109493,91330.0,91326.0,0.01094978]
[1767503671714,0.0109493,91330.0,91325.0,0.0109499]
[1767503672823,0.0109493,91330.0,91326.0,0.01094978]
[1767503673026,0.0109493,91330.0,91326.0,0.05898155]
[1767503673427,0.0109493,91330.0,91326.0,0.01094978]
[1767503673751,0.01085906,91330.0,91326.0,0.01094978]
[1767503673974,0.06560618,91330.0,91324.0,0.03283002]
[1767503674854,0.01094942,91329.0,91325.0,0.0109499]
[1767503675059,0.01088054,91329.0,91325.0,0.0109499]
[1767503676694,0.01085906,91330.0,91325.0,0.0109499]
[1767503677666,0.01094942,91329.0,91324.0,0.03283002]
[1767503677906,0.01086123,91329.0,91325.0,0.0109499]
[1767503679762,0.01086123,91329.0,91324.0,0.03283002]
[1767503680337,0.01086123,91329.0,91324.0,0.08086179]
[1767503681243,0.01086123,91329.0,91324.0,0.05898179]
[1767503681444,0.05474952,91325.0,91319.0,0.04803177]
[1767503681682,0.01086194,91323.0,91322.0,0.02188]
[1767503681893,0.0107717,91323.0,91322.0,0.02188]
[1767503682065,0.06569942,91325.0,91323.0,0.000999]
[1767503682221,0.06569942,91325.0,91322.0,0.02188]
[1767503682626,0.0109499,91325.0,91322.0,0.02188]
[1767503683277,0.06569944,91325.0,91322.0,0.02188]
[1767503683509,0.05475052,91324.0,91322.0,0.02105943]
[1767503683735,0.06569944,91325.0,91322.0,0.02105943]
[1767503683907,0.0109499,91325.0,91322.0,0.02105943]
[1767503684525,0.01079283,91325.0,91322.0,0.02105943]
[1767503685341,0.01094978,91326.0,91322.0,0.03200969]
[1767503685557,0.01094978,91326.0,91322.0,0.02105943]
[1767503686373,0.01094978,91326.0,91321.0,0.01095038]
[1767503687911,0.0109499,91325.0,91321.0,0.01095038]
[1767503688250,0.0109499,91325.0,91320.0,0.0109505]
[1767503690080,0.01095014,91323.0,91319.0,0.04803177]
[1767503690461,0.06570197,91322.0,91319.0,0.04803177]
[1767503690662,0.05475234,91321.0,91319.0,0.04803177]
[1767503690871,0.05459526,91321.0,91319.0,0.04803177]
[1767503691493,0.05452638,91321.0,91319.0,0.04803177]
[1767503691747,0.06570197,91322.0,91319.0,0.04803177]
[1767503692176,0.01095026,91322.0,91319.0,0.04803177]
[1767503692380,0.06570213,91322.0,91319.0,0.04803177]
[1767503693024,0.01095026,91322.0,91319.0,0.04803177]
[1767503693643,0.01095026,91322.0,91318.0,0.02188]
[1767503694916,0.01095038,91321.0,91318.0,0.02188]
[1767503696817,0.01095014,91323.0,91321.0,0.000999]
[1767503696991,0.01095026,91322.0,91318.0,0.02188]
[1767503697432,0.01095014,91323.0,91318.0,0.08086251]
[1767503697647,0.00995114,91323.0,91318.0,0.08093325]
[1767503697864,0.01095002,91324.0,91319.0,0.01095062]
[1767503698056,0.01095002,91324.0,91323.0,0.00995113]
[1767503699140,0.01095002,91324.0,91323.0,0.00895213]
[1767503699339,0.01095026,91322.0,91318.0,0.05905325]
[1767503700032,0.01095014,91323.0,91318.0,0.05905325]
[1767503701191,0.01095026,91322.0,91318.0,0.04810251]
[1767503701821,0.01095038,91321.0,91318.0,0.04810251]
[1767503702198,0.01095038,91321.0,91318.0,7.074e-05]
[1767503702598,0.01095038,91321.0,91318.0,0.0451587]
[1767503703011,0.01095026,91322.0,91318.0,0.0451587]
[1767503703685,0.01095026,91322.0,91318.0,7.074e-05]
[1767503705940,0.01095038,91321.0,91318.0,7.074e-05]
[1767503709836,0.01086014,91321.0,91318.0,7.074e-05]
[1767503710044,0.01095026,91322.0,91318.0,7.074e-05]
[1767503711664,0.01095038,91321.0,91318.0,7.074e-05]
[1767503711875,0.01077396,91321.0,91318.0,7.074e-05]
[1767503712092,0.01068575,91321.0,91318.0,7.074e-05]
[1767503713567,0.01095026,91322.0,91321.0,0.000999]
[1767503714037,0.01095026,91322.0,91318.0,0.0451587]
[1767503714243,0.01095014,91323.0,91318.0,0.05610944]
[1767503714582,0.00988226,91323.0,91319.0,0.01095062]
[1767503715394,0.01095002,91324.0,91320.0,0.0109505]
[1767503715623,0.01095002,91324.0,91319.0,0.01095062]
[1767503715866,0.01095002,91324.0,91320.0,0.04508796]
[1767503717213,0.01095014,91323.0,91320.0,0.04508796]
[1767503718226,0.01095002,91324.0,91320.0,0.04508796]
[1767503718946,0.0108618,91324.0,91320.0,0.04508796]
[1767503720171,0.01095014,91323.0,91320.0,0.04508796]
[1767503722164,0.01095014,91323.0,91320.0,0.04408896]
[1767503723922,0.06570139,91323.0,91320.0,0.04408896]
[1767503724211,0.06563251,91323.0,91320.0,0.04408896]
[1767503724954,0.23738093,91340.0,91308.0,0.01095194]
[1767503724955,0.02197234,91317.0,91308.0,0.01095194]
[1767503725168,0.05475671,91313.0,91308.0,4.715e-05]
[1767503725387,0.01095158,91311.0,91308.0,2.05e-06]
[1767503725590,0.06571006,91311.0,91308.0,2.05e-06]
[1767503725791,0.05475899,91310.0,91308.0,2.05e-06]
[1767503726153,0.06571006,91311.0,91309.0,0.04508796]
[1767503726385,0.02666164,91311.0,91308.0,2.05e-06]
[1767503726754,0.05475899,91310.0,91308.0,2.05e-06]
[1767503727076,0.02666164,91311.0,91308.0,2.05e-06]
[1767503729184,0.02566264,91311.0,91308.0,2.05e-06]
[1767503734060,0.05475892,91310.0,91308.0,2.05e-06]
[1767503758403,0.05466879,91310.0,91308.0,2.05e-06]
[1767503760290,0.02566264,91311.0,91308.0,2.05e-06]
[1767503760615,0.06570778,91314.0,91311.0,0.009001]
[1767503760844,0.05475709,91313.0,91311.0,0.009001]
[1767503761039,0.06570778,91314.0,91311.0,0.009001]
[1767503763040,0.05475718,91313.0,91311.0,0.009001]
[1767503763248,0.01095146,91312.0,91308.0,0.01095399]
[1767503763454,0.01095134,91313.0,91308.0,0.01095399]
[1767503764348,0.01095146,91312.0,91308.0,0.01095399]
[1767503764674,0.01095146,91312.0,91308.0,2.05e-06]
[1767503765342,0.01095146,91312.0,91308.0,0.01095399]
[1767503766085,0.01095158,91311.0,91308.0,2.05e-06]
[1767503767590,0.01095146,91312.0,91308.0,2.05e-06]
[1767503768575,0.01095146,91312.0,91308.0,0.01095399]
[1767503768973,0.01095134,91313.0,91308.0,0.01095399]
[1767503769857,0.01095134,91313.0,91309.0,0.01095182]
[1767503770218,0.01095134,91313.0,91308.0,0.01095399]
[1767503771187,0.01095134,91313.0,91309.0,0.01095182]
[1767503772443,0.01095134,91313.0,91308.0,0.01095399]
[1767503772646,0.01095062,91319.0,91310.0,0.01095072]
[1767503772855,0.06811008,91318.0,91313.0,0.01095134]
[1767503773075,0.01095086,91317.0,91312.0,0.01095146]
[1767503773806,0.02192,91318.0,91313.0,0.01095134]
[1767503774009,0.01095098,91316.0,91312.0,0.01095146]
[1767503774213,0.03287074,91318.0,91313.0,0.01095134]
[1767503774434,0.01095086,91317.0,91313.0,0.01095134]
[1767503775234,0.03287074,91318.0,91313.0,0.01095134]
[1767503775464,0.01095086,91317.0,91313.0,0.01095134]
[1767503775745,0.01095062,91319.0,91313.0,0.01095134]
[1767503775973,0.04379948,91322.0,91319.0,0.01095062]
[1767503775974,0.02192,91322.0,91319.0,0.01095062]
[1767503776156,0.02192,91322.0,91318.0,0.01095074]
[1767503776561,0.02192,91322.0,91319.0,0.01095062]
[1767503776816,0.02192,91322.0,91318.0,0.01095074]
[1767503777017,0.01095014,91323.0,91317.0,0.01095086]
[1767503777147,0.01095014,91323.0,91318.0,0.01095074]
[1767503777352,0.05714034,91322.0,91316.0,0.02665606]
[1767503777552,0.01095026,91322.0,91314.0,0.01095122]
[1767503778158,0.01095026,91322.0,91314.0,0.0605443]
[1767503778359,0.01095026,91322.0,91316.0,0.05475446]
[1767503778538,0.01095014,91323.0,91318.0,0.01095074]
[1767503778967,0.01095026,91322.0,91317.0,0.01095086]
[1767503779169,0.01095026,91322.0,91318.0,0.01095074]
[1767503779370,0.01095026,91322.0,91317.0,0.01095086]
[1767503779572,0.01095038,91321.0,91317.0,0.01095086]
[1767503780408,0.01095014,91323.0,91318.0,0.06054382]
[1767503780785,0.01095002,91324.0,91318.0,0.06054382]
[1767503780999,0.000999,91318.0,91317.0,0.01095086]
[1767503781412,0.000999,91318.0,91316.0,0.10434754]
[1767503781557,0.01095038,91321.0,91316.0,0.11529852]
[1767503781764,0.01095038,91321.0,91317.0,0.01095086]
[1767503781978,0.01095038,91321.0,91316.0,0.11529852]
[1767503782180,0.01095038,91321.0,91316.0,0.06054406]
[1767503782582,0.01095038,91321.0,91317.0,0.01095086]
[1767503783000,0.01095038,91321.0,91316.0,0.06054406]
[1767503784053,0.0109505,91320.0,91316.0,0.06054406]
[1767503784481,0.01095038,91321.0,91316.0,0.06054406]
[1767503784649,0.01095026,91322.0,91317.0,0.01095086]
[1767503785875,0.01095038,91321.0,91317.0,0.01095086]
[1767503786077,0.04619008,91321.0,91316.0,0.02421521]
[1767503786286,0.04619008,91321.0,91317.0,0.01095086]
[1767503786467,0.01095026,91322.0,91317.0,0.01095086]
[1767503786813,0.01095026,91322.0,91318.0,0.04959308]
[1767503790887,0.01095038,91321.0,91318.0,0.04959308]
[1767503791587,0.01095038,91321.0,91318.0,0.04859408]
[1767503792815,0.06570269,91321.0,91318.0,0.03859408]
[1767503793434,0.01095038,91321.0,91318.0,0.03859408]
[1767503794046,0.01095014,91323.0,91317.0,0.06092054]
[1767503794253,0.01095014,91323.0,91321.0,0.04996968]
[1767503795515,0.02192,91325.0,91323.0,0.000999]
[1767503795698,0.02192,91325.0,91323.0,0.010999]
[1767503795902,0.02192,91325.0,91321.0,0.11567189]
[1767503796486,0.02192,91325.0,91321.0,0.06092006]
[1767503797409,0.0328699,91325.0,91321.0,0.06092006]
[1767503797622,0.0328699,91325.0,91321.0,0.04996968]
[1767503797975,0.0328699,91325.0,91321.0,0.06092006]
[1767503798176,0.0328699,91325.0,91321.0,0.04996968]
[1767503798510,0.02192,91325.0,91321.0,0.06092006]
[1767503798730,0.020921,91325.0,91321.0,0.06092006]
[1767503800557,0.02083279,91325.0,91321.0,0.06092006]
[1767503801719,0.02083279,91325.0,91322.0,0.06091994]
[1767503801918,0.02083279,91325.0,91322.0,0.04996968]
[1767503802129,0.02083279,91325.0,91322.0,0.04897068]
[1767503802456,0.0229485,91324.0,91319.0,0.06465562]
[1767503802607,0.0219495,91324.0,91321.0,0.0657017]
[1767503802807,0.0119495,91324.0,91321.0,0.01095038]
[1767503803446,4.862e-05,91321.0,91320.0,0.0109505]
[1767503805347,6.2e-07,91321.0,91320.0,0.0109505]
[1767503807730,6.2e-07,91321.0,91320.0,0.06092018]
[1767503807929,6.2e-07,91325.0,91322.0,0.04996968]
[1767503808088,0.07666639,91331.0,91324.0,0.01095002]
[1767503808495,0.02192,91331.0,91326.0,0.01094978]
[1767503808698,0.0109493,91330.0,91326.0,0.01094978]
[1767503809106,0.0109493,91330.0,91325.0,0.0109499]
[1767503809527,0.03286918,91331.0,91326.0,0.01094978]
[1767503809730,0.0109493,91330.0,91325.0,0.0109499]
[1767503810463,0.03286918,91331.0,91326.0,0.01094978]
[1767503810669,0.0109493,91330.0,91325.0,0.0109499]
[1767503810962,0.03286882,91334.0,91330.0,0.010999]
[1767503811199,0.02192,91334.0,91330.0,0.0219483]
[1767503811373,0.03286882,91334.0,91330.0,0.01]
[1767503811603,0.02192,91334.0,91330.0,0.0209493]
[1767503812015,0.03286882,91334.0,91330.0,0.01]
[1767503812199,0.03286882,91334.0,91329.0,0.01094942]
[1767503812345,0.03276727,91334.0,91329.0,0.01094942]
[1767503812551,0.01066069,91334.0,91331.0,0.04996968]
[1767503812760,0.01094798,91341.0,91334.0,0.0719175]
[1767503812962,0.0109481,91340.0,91335.0,0.0109487]
[1767503813349,0.01094822,91339.0,91335.0,0.06091838]
[1767503813643,0.01094822,91339.0,91335.0,0.04996968]
[1767503814203,0.01094834,91338.0,91335.0,0.04996968]
[1767503814429,0.01094846,91337.0,91332.0,0.01094906]
[1767503814579,0.01094846,91337.0,91333.0,0.04996968]
[1767503814982,0.01094846,91337.0,91333.0,0.06091862]
[1767503815725,0.01086012,91338.0,91333.0,0.06091862]
[1767503816137,0.01086012,91338.0,91335.0,0.04996968]
[1767503816464,0.01094822,91339.0,91335.0,0.04996968]
[1767503816614,0.0100222,91339.0,91335.0,0.06091838]
[1767503816996,0.0109481,91340.0,91336.0,0.01094858]
[1767503817772,0.01094798,91341.0,91336.0,0.01094858]
[1767503818104,0.0109481,91340.0,91336.0,0.01094858]
[1767503818311,0.0109481,91340.0,91335.0,0.06091838]
[1767503818512,0.01094798,91341.0,91336.0,0.01094858]
[1767503819219,0.0109481,91340.0,91335.0,0.06091838]
[1767503820325,0.01094798,91341.0,91337.0,0.01094846]
[1767503820523,0.01094798,91341.0,91336.0,0.01094858]
[1767503821682,0.01085975,91341.0,91337.0,0.04804164]
[1767503821830,0.01077152,91341.0,91337.0,0.04804164]
[1767503824607,0.06568888,91340.0,91335.0,0.04804164]
[1767503824814,0.06568888,91340.0,91334.0,0.01094882]
[1767503825098,0.01094822,91339.0,91334.0,0.05899046]
[1767503825627,0.01094834,91338.0,91334.0,0.05899046]
[1767503827429,0.0109481,91340.0,91338.0,0.000999]
[1767503827630,0.0109481,91340.0,91338.0,0.04904064]
[1767503827846,0.0109481,91340.0,91338.0,0.000999]
[1767503827992,0.0109481,91340.0,91336.0,0.04804164]
[1767503828592,0.01085986,91340.0,91336.0,0.04804164]
[1767503828862,0.01094798,91341.0,91340.0,0.000999]
[1767503829037,0.0109481,91340.0,91335.0,0.01296839]
[1767503829246,0.01094798,91341.0,91336.0,0.01094858]
[1767503829620,0.01094798,91341.0,91327.0,0.26703322]
[1767503829621,0.02435069,91347.0,91342.0,0.01094786]
[1767503829828,0.01094714,91348.0,91342.0,0.01094786]
[1767503830024,0.01094726,91347.0,91342.0,0.01094786]
[1767503830231,0.01087835,91347.0,91342.0,0.01094786]
[1767503830428,0.01087835,91347.0,91343.0,0.04804164]
[1767503830616,0.01094738,91346.0,91343.0,0.04804164]
[1767503831271,0.06568433,91346.0,91343.0,0.04804164]
[1767503831499,0.01094738,91346.0,91343.0,0.04704264]
[1767503834029,0.0109469,91350.0,91347.0,0.04804164]
[1767503834354,0.06568191,91350.0,91347.0,0.04804164]
[1767503834558,0.0109469,91350.0,91347.0,0.04804164]
[1767503835400,0.065682,91350.0,91347.0,0.04804164]
[1767503836383,0.05473567,91349.0,91347.0,0.04804164]
[1767503839472,0.05373667,91349.0,91347.0,0.04804164]
[1767503840418,0.05373667,91349.0,91347.0,0.04704264]
[1767503841908,0.05366777,91349.0,91347.0,0.04704264]
[1767503842466,0.06559375,91350.0,91347.0,0.04704264]
[1767503848842,0.06552485,91350.0,91347.0,0.04704264]
[1767503850246,0.05473557,91349.0,91347.0,0.04704264]
[1767503855109,0.05466667,91349.0,91347.0,0.04704264]
[1767503858683,0.05366767,91349.0,91347.0,0.04704264]
[1767503864938,0.05366767,91349.0,91347.0,0.04699758]
[1767503865166,0.06552485,91350.0,91347.0,0.04699758]
[1767503865376,0.06543659,91350.0,91347.0,0.04699758]
[1767503868350,0.06536768,91350.0,91347.0,0.04699758]
[1767503868750,0.05473561,91349.0,91347.0,0.04699758]
[1767503869694,0.05464735,91349.0,91347.0,0.04699758]
[1767503877086,0.01094714,91348.0,91344.0,0.04744667]
[1767503878340,0.01094702,91349.0,91344.0,0.05839429]
[1767503878451,0.01094702,91349.0,91345.0,0.0109475]
[1767503878665,0.06536768,91350.0,91345.0,0.0109475]
[1767503878863,0.01063258,91350.0,91345.0,0.0109475]
[1767503879743,0.01094678,91351.0,91346.0,0.01094738]
[1767503880061,0.0109463,91355.0,91351.0,0.05744667]
[1767503880246,0.0109463,91355.0,91352.0,0.04637246]
[1767503880663,0.01994718,91356.0,91352.0,0.04637246]
[1767503881004,0.01994718,91356.0,91351.0,0.01094678]
[1767503881218,0.01994718,91356.0,91351.0,0.05731924]
[1767503881426,0.06567381,91361.0,91352.0,0.05731912]
[1767503881662,0.01094558,91361.0,91356.0,0.02094618]
[1767503881866,0.0109457,91360.0,91356.0,0.02094618]
[1767503882092,0.01094558,91361.0,91356.0,0.02094618]
[1767503882308,0.0109457,91360.0,91356.0,0.01]
[1767503882717,0.0109457,91360.0,91356.0,0.02094618]
[1767503883318,0.01094558,91361.0,91356.0,0.02094618]
[1767503887992,0.01087667,91361.0,91356.0,0.02094618]
[1767503888802,0.0109457,91360.0,91356.0,0.01]
[1767503889002,0.01085744,91360.0,91356.0,0.01]
[1767503889238,0.01085744,91360.0,91355.0,0.0109463]
[1767503890280,0.01094594,91358.0,91354.0,0.01094642]
[1767503890452,0.01094582,91359.0,91354.0,0.05731888]
[1767503890635,0.01094582,91359.0,91355.0,0.0109463]
[1767503891016,0.01085744,91360.0,91355.0,0.0109463]
[1767503891634,0.000999,91355.0,91350.0,0.02188]
[1767503891864,0.01094654,91353.0,91350.0,0.02188]
[1767503892063,0.01094654,91353.0,91350.0,0.02183588]
[1767503892381,0.01094642,91354.0,91350.0,0.02183588]
[1767503892580,0.01094642,91354.0,91350.0,0.02083688]
[1767503893386,0.01094642,91354.0,91350.0,0.03178378]
[1767503893646,0.01094654,91353.0,91350.0,0.02083688]
[1767503894261,0.01094666,91352.0,91348.0,0.03282714]
[1767503894480,0.01094654,91353.0,91348.0,0.03282714]
[1767503894842,0.01094642,91354.0,91349.0,0.01094702]
[1767503895049,0.01094654,91353.0,91348.0,0.03282714]
[1767503895581,0.01094642,91354.0,91353.0,0.000999]
[1767503895786,0.01094642,91354.0,91353.0,0.00095488]
[1767503896148,0.01094642,91354.0,91348.0,0.03282714]
[1767503896354,0.01094642,91354.0,91349.0,0.01094702]
[1767503896758,0.01094654,91353.0,91348.0,0.03282714]
[1767503896981,0.01094642,91354.0,91349.0,0.01094702]
[1767503899068,0.0109463,91355.0,91350.0,0.0109469]
[1767503899630,0.01080345,91355.0,91350.0,0.0109469]
[1767503900557,0.01067967,91355.0,91350.0,0.0109469]
[1767503901284,0.01094642,91354.0,91350.0,0.0109469]
[1767503901478,0.01094654,91353.0,91348.0,0.03282714]
[1767503901657,7.86e-05,91353.0,91349.0,0.01094702]
[1767503902013,0.0109457,91360.0,91354.0,0.01094642]
[1767503902978,0.01094582,91359.0,91355.0,0.0109463]
[1767503903762,0.0109457,91360.0,91359.0,0.000955]
[1767503904305,0.01094582,91359.0,91355.0,0.0109463]
[1767503904560,0.0109457,91360.0,91355.0,0.0109463]
[1767503904764,0.01094582,91359.0,91354.0,0.01094642]
[1767503904973,0.01094582,91359.0,91354.0,0.0112639]
[1767503905174,0.01094582,91359.0,91354.0,0.01094642]
[1767503905707,0.0109457,91360.0,91355.0,0.0109463]
[1767503905912,0.0109457,91360.0,91359.0,0.000955]
[1767503906471,0.0109457,91360.0,91355.0,0.0109463]
[1767503906987,0.01094582,91359.0,91354.0,0.01094642]
[1767503907324,4.4e-05,91354.0,91352.0,0.01094666]
[1767503907522,0.01094606,91357.0,91354.0,4.4e-05]
[1767503907823,0.01094594,91358.0,91354.0,0.01099042]
[1767503908026,0.01094582,91359.0,91355.0,0.0109463]
[1767503908179,0.01094582,91359.0,91358.0,0.000999]
[1767503908337,0.06567471,91360.0,91358.0,0.000999]
[1767503908546,0.01094546,91362.0,91357.0,0.01094606]
[1767503908767,0.01094523,91364.0,91359.0,0.01094582]
[1767503908946,0.01094511,91365.0,91362.0,0.009956]
[1767503909306,0.01094511,91365.0,91360.0,0.0109457]
[1767503909740,0.01094523,91364.0,91360.0,0.0109457]
[1767503910117,0.01094511,91365.0,91360.0,0.0109457]
[1767503912372,0.01094511,91365.0,91361.0,0.01094558]
[1767503912811,0.01094499,91366.0,91361.0,0.01094558]
[1767503913996,0.01094499,91366.0,91360.0,0.0109457]
[1767503913997,0.01094511,91365.0,91360.0,0.0109457]
[1767503914201,0.01094523,91364.0,91358.0,0.01094594]
[1767503914612,0.01094523,91364.0,91359.0,0.01094582]
[1767503915236,0.01094546,91362.0,91354.0,0.01094642]
[1767503915435,0.01094558,91361.0,91355.0,0.06567784]
[1767503916059,0.01094546,91362.0,91357.0,0.01094606]
[1767503916264,0.01094558,91361.0,91357.0,0.01094606]
[1767503917884,0.01094546,91362.0,91357.0,0.01094606]
[1767503918281,0.01094546,91362.0,91361.0,0.00029434]
[1767503920824,0.0656728,91362.0,91361.0,0.00029434]
[1767503921265,0.01094546,91362.0,91361.0,0.00029434]
[1767503925533,0.06567178,91364.0,91361.0,0.00029434]
[1767503925825,0.01094558,91361.0,91357.0,0.01094606]
[1767503926021,0.01094546,91362.0,91357.0,0.01094606]
[1767503926403,0.01094546,91362.0,91361.0,0.00029434]
[1767503926766,0.06567178,91364.0,91361.0,0.00029434]
[1767503926969,0.01094546,91362.0,91358.0,0.01094594]
[1767503927396,0.01094546,91362.0,91357.0,0.01094606]
[1767503927939,0.01094558,91361.0,91356.0,0.01094618]
[1767503928141,0.01085545,91361.0,91357.0,0.01094606]
[1767503929637,0.01094546,91362.0,91357.0,0.01094606]
[1767503929831,0.01094546,91362.0,91358.0,0.01094594]
[1767503930033,0.01094546,91362.0,91357.0,0.01094606]
[1767503930240,0.01094558,91361.0,91357.0,0.01094606]
[1767503930419,0.01094546,91362.0,91357.0,0.01094606]
[1767503930599,0.01094546,91362.0,91358.0,0.01094594]
[1767503931903,0.01094534,91363.0,91358.0,0.01094594]
[1767503932377,0.01094534,91363.0,91361.0,0.00029434]
[1767503932563,0.01094534,91363.0,91359.0,0.01094582]
[1767503932766,0.01094546,91362.0,91358.0,0.01094594]
[1767503932896,0.01094534,91363.0,91359.0,0.01094582]
[1767503933548,0.01094523,91364.0,91359.0,0.01094582]
[1767503933727,0.01094511,91365.0,91360.0,0.0109457]
[1767503934363,0.01094523,91364.0,91359.0,0.01094582]
[1767503934875,0.01094534,91363.0,91358.0,0.01094594]